fUSD/lending_fUSD_20260208
["ID","MTS","AMOUNT","RATE_DAILY","PERIOD"]
[404752529,1770508992898,500.0,0.00035616,30]
[404752530,1770509012126,544.22654,0.00035616,30]
[404752532,1770509431889,-361.04264806,0.00014466,2]
[404752533,1770509431900,-250.22386513,0.00014466,2]
[404752534,1770509431913,-433.73348681,0.00014466,2]
[404752535,1770509431923,-154.1135256,0.00014467,2]
[404752536,1770509431932,-105.67415466,0.00014467,2]
[404752537,1770509431943,-1186.8261432,0.00014467,2]
[404752538,1770509431954,-878.47389663,0.00014467,2]
[404752539,1770509431965,-291.65079717,0.00014467,2]
[404752540,1770509431975,-169.79321426,0.00014467,2]
[404752541,1770509431986,-14.16111333,0.00014467,2]
[404752542,1770509431996,-252.21903544,0.00014467,2]
[404752543,1770509432007,-191.42009053,0.00014467,2]
[404752544,1770509432016,-516.85226073,0.00014467,2]
[404752545,1770509432028,-1124.14885605,0.00014467,2]
[404752546,1770509432038,-178.15584366,0.00014472,2]
[404752547,1770509432047,-199.40872002,0.00014472,2]
[404752548,1770509432058,-427.5603726,0.00014472,2]
[404752549,1770509432069,-252.0786274,0.00014472,2]
[404752550,1770509432079,-154.1135256,0.00014566,2]
[404752551,1770509432090,-86.22562002,0.00014566,2]
[404752552,1770509432105,-67.78872801,0.00014566,2]
[404752553,1770509432114,-363.94556505,0.00014566,2]
[404752554,1770509432124,-201.55078248,0.00014567,2]
[404752555,1770509432133,-849.61645506,0.00014567,2]
[404752556,1770509432144,-1015.1628788,0.00014567,2]
[404752557,1770509432155,-666.96670514,0.00014567,2]
[404752561,1770509432201,-325.33713851,0.00014567,2]
[404752562,1770509432212,-391.80394931,0.00014567,2]
[404752566,1770509438003,-1679.1011537,0.00014567,2]
[404752567,1770509438015,-1181.90649699,0.00014567,2]
[404752568,1770509438025,-6.78150443,0.00014567,2]
[404752569,1770509438053,-2020.0,0.00014567,2]
[404752571,1770509439916,-4699.37001355,0.00014567,2]
[404752572,1770509439927,-509.65562623,0.00014567,2]
[404752573,1770509439974,-596.298,0.00014567,2]
[404752574,1770509440152,-45527.03721792,0.00014567,2]
[404752575,1770509440391,-3446640.85763787,0.00014567,2]
[404752577,1770509440400,-32960.9368,0.00014567,2]
[404752579,1770509440409,-2500.0,0.00014567,2]
[404752580,1770509440419,-500.0,0.00014766,2]
[404752581,1770509440428,-500.0,0.00014766,2]
[404752582,1770509440439,-500.0,0.00014766,2]
[404752583,1770509440449,-500.0,0.00014766,2]
[404752584,1770509440459,-603.19668382,0.00014766,2]
[404752585,1770509440471,-500.0,0.00014766,2]
[404752586,1770509440481,-500.0,0.00014766,2]
[404752587,1770509440491,-500.0,0.00014766,2]
[404752588,1770509440500,-500.0,0.00014766,2]
[404752589,1770509440510,-620.13152007,0.00014766,2]
[404752590,1770509440519,-500.0,0.00014766,2]
[404752591,1770509440529,-500.0,0.00014766,2]
[404752592,1770509440538,-500.0,0.00014766,2]
[404752593,1770509440547,-500.0,0.00014766,2]
[404752594,1770509440557,-426.4,0.00014766,2]
[404752595,1770509440567,-500.0,0.00014766,2]
[404752596,1770509440577,-500.0,0.00014766,2]
[404752597,1770509440586,-500.0,0.00014766,2]
[404752598,1770509440598,-500.0,0.00014766,2]
[404752599,1770509440608,-500.0,0.00014766,2]
[404752600,1770509440618,-462.88,0.00014766,2]
[404752601,1770509440627,-500.0,0.00014766,2]
[404752602,1770509440637,-549.3943227,0.00014766,2]
[404752603,1770509440647,-500.0,0.00014766,2]
[404752604,1770509440656,-500.0,0.00014766,2]
[404752605,1770509440666,-500.0,0.00014766,2]
[404752606,1770509440675,-500.0,0.00014766,2]
[404752607,1770509440684,-500.0,0.00014766,2]
[404752608,1770509440694,-500.0,0.00014766,2]
[404752609,1770509440703,-500.0,0.00014766,2]
[404752610,1770509440712,-500.0,0.00014766,2]
[404752611,1770509440724,-500.0,0.00014766,2]
[404752612,1770509440734,-500.0,0.00014766,2]
[404752613,1770509440743,-500.0,0.00014766,2]
[404752614,1770509440752,-500.0,0.00014766,2]
[404752615,1770509440762,-500.0,0.00014766,2]
[404752616,1770509440771,-500.0,0.00014766,2]
[404752617,1770509440781,-500.0,0.00014766,2]
[404752618,1770509440790,-500.0,0.00014766,2]
[404752619,1770509440800,-500.0,0.00014766,2]
[404752620,1770509440809,-500.0,0.00014766,2]
[404752621,1770509440818,-500.0,0.00014766,2]
[404752622,1770509440827,-500.0,0.00014766,2]
[404752623,1770509440836,-500.0,0.00014766,2]
[404752624,1770509440845,-500.0,0.00014766,2]
[404752625,1770509440855,-500.0,0.00014766,2]
[404752626,1770509440864,-500.0,0.00014766,2]
[404752627,1770509440873,-500.0,0.00014766,2]
[404752628,1770509440882,-500.0,0.00014766,2]
[404752629,1770509440892,-500.0,0.00014766,2]
[404752630,1770509440903,-500.0,0.00014766,2]
[404752631,1770509440913,-235.96390322,0.00014767,2]
[404752632,1770509440923,-150.99,0.00014767,2]
[404752633,1770509440933,-352.78,0.00014767,2]
[404752634,1770509440942,-5323.94,0.00014767,2]
[404752635,1770509440952,-9999.99,0.00014767,2]
[404752636,1770509440963,-299.99,0.00014767,2]
[404752637,1770509440972,-3000.74192184,0.00014767,2]
[404752638,1770509440981,-421.0,0.0001482,2]
[404752639,1770509440992,-421.0,0.00014832,2]
[404752640,1770509441004,-155.0,0.00014866,2]
[404752641,1770509441014,-1000.0,0.00014867,2]
[404752642,1770509441024,-421.0,0.00014952,2]
[404752643,1770509441035,-421.0,0.00014998,2]
[404752644,1770509441045,-152.88,0.00015024,2]
[404752645,1770509441056,-421.0,0.00015085,2]
[404752646,1770509441067,-421.0,0.00015096,2]
[404752647,1770509441077,-421.0,0.00015112,2]
[404752648,1770509441089,-421.0,0.00015148,2]
[404752649,1770509441102,-421.0,0.00015164,2]
[404752650,1770509441112,-421.0,0.00015164,2]
[404752651,1770509441123,-421.0,0.00015236,2]
[404752652,1770509441136,-500.0,0.00015373,2]
[404752653,1770509441147,-258.50232116,0.00015373,2]
[404752654,1770509441156,-421.0,0.00015395,2]
[404752655,1770509441169,-500.0,0.00015424,2]
[404752656,1770509441179,-421.0,0.00015465,2]
[404752657,1770509441189,-421.0,0.00015481,2]
[404752658,1770509441199,-421.0,0.00015516,2]
[404752659,1770509441209,-421.0,0.00015594,2]
[404752660,1770509441220,-421.0,0.00015814,2]
[404752661,1770509441230,-421.0,0.00015852,2]
[404752662,1770509441240,-687.69562898,0.00015921,2]
[404752663,1770509441249,-421.0,0.00015952,2]
[404752664,1770509441259,-421.0,0.00015961,2]
[404752665,1770509441268,-28132.18,0.00016004,2]
[404752666,1770509441277,-421.0,0.0001603,2]
[404752667,1770509441287,-421.0,0.0001605,2]
[404752668,1770509441296,-421.0,0.00016076,2]
[404752669,1770509441307,-421.0,0.00016082,2]
[404752670,1770509441317,-421.0,0.00016102,2]
[404752671,1770509441327,-155.0,0.00016353,2]
[404752672,1770509441337,-1641.00111673,0.00017719,2]
[404752673,1770509441346,-160.0,0.00017776,2]
[404752674,1770509441355,-500.0,0.00017807,2]
[404752675,1770509441366,-2857.08317748,0.00017808,2]
[404752676,1770509441375,-1164.2314276,0.00017808,2]
[404752677,1770509441384,-1164.2314276,0.00017808,2]
[404752678,1770509441394,-1164.2314276,0.00017808,2]
[404752679,1770509441403,-1156.20224534,0.00017808,2]
[404752680,1770509441413,-1156.20224534,0.00017808,2]
[404752681,1770509441422,-1156.20224534,0.00017808,2]
[404752682,1770509441431,-1160.84562785,0.00017808,2]
[404752683,1770509441440,-1160.84562785,0.00017808,2]
[404752684,1770509441450,-1160.84562785,0.00017808,2]
[404752685,1770509441461,-1160.84562785,0.00017808,2]
[404752686,1770509441471,-1160.84562785,0.00017808,2]
[404752687,1770509441480,-1160.84562785,0.00017808,2]
[404752688,1770509441489,-1160.84562785,0.00017808,2]
[404752689,1770509441499,-1160.84562785,0.00017808,2]
[404752690,1770509441508,-1160.84562785,0.00017808,2]
[404752691,1770509441518,-1160.84562785,0.00017808,2]
[404752692,1770509441529,-1160.84562785,0.00017808,2]
[404752693,1770509441539,-1160.84562785,0.00017808,2]
[404752694,1770509441550,-1160.84562785,0.00017808,2]
[404752695,1770509441560,-1160.84562785,0.00017808,2]
[404752696,1770509441570,-1160.84562785,0.00017808,2]
[404752697,1770509441581,-1160.84562785,0.00017808,2]
[404752698,1770509441592,-1160.84562785,0.00017808,2]
[404752699,1770509441602,-1160.84562785,0.00017808,2]
[404752700,1770509441613,-1160.84562785,0.00017808,2]
[404752701,1770509441624,-1160.84562785,0.00017808,2]
[404752702,1770509441635,-1160.84562785,0.00017808,2]
[404752703,1770509441646,-1160.84562785,0.00017808,2]
[404752704,1770509441657,-1160.84562785,0.00017808,2]
[404752705,1770509441666,-1160.84562785,0.00017808,2]
[404752706,1770509441677,-1160.84562785,0.00017808,2]
[404752707,1770509441687,-1160.84562785,0.00017808,2]
[404752708,1770509441699,-1160.84562785,0.00017808,2]
[404752709,1770509441709,-1160.84562785,0.00017808,2]
[404752710,1770509441720,-1160.84562785,0.00017808,2]
[404752711,1770509441728,-1160.84562785,0.00017808,2]
[404752712,1770509441737,-1160.84562785,0.00017808,2]
[404752713,1770509441746,-1160.84562785,0.00017808,2]
[404752714,1770509441756,-1160.84562785,0.00017808,2]
[404752715,1770509441768,-1160.84562785,0.00017808,2]
[404752716,1770509441778,-1160.84562785,0.00017808,2]
[404752717,1770509441787,-1160.84562785,0.00017808,2]
[404752718,1770509441796,-1160.84562785,0.00017808,2]
[404752719,1770509441805,-1160.84562785,0.00017808,2]
[404752720,1770509441814,-1160.84562785,0.00017808,2]
[404752721,1770509441826,-1160.84562785,0.00017808,2]
[404752722,1770509441836,-1160.84562785,0.00017808,2]
[404752723,1770509441847,-1144.947742,0.00017808,2]
[404752724,1770509441857,-1144.947742,0.00017808,2]
[404752725,1770509441868,-155.0,0.00017839,2]
[404752726,1770509441879,-250.0,0.00018047,2]
[404752727,1770509441889,-500.0,0.00018192,2]
[404752728,1770509441899,-500.0,0.00018192,2]
[404752729,1770509441908,-500.0,0.00018229,2]
[404752730,1770509441919,-451.42962485,0.00018292,2]
[404752731,1770509441930,-443.63912595,0.00018695,2]
[404752732,1770509441940,-1000.0,0.0001878,2]
[404752733,1770509441952,-200.0,0.0001878,2]
[404752734,1770509441961,-200.0,0.0001878,2]
[404752735,1770509441971,-20153.5,0.00019178,2]
[404752736,1770509441981,-2253.99,0.00019216,2]
[404752737,1770509441990,-235.96390318,0.00019649,2]
[404752738,1770509441999,-3240.0,0.00020432,2]
[404752739,1770509442009,-155.0,0.00020812,2]
[404752740,1770509442018,-500.0,0.00021033,2]
[404752741,1770509442027,-2857.08317748,0.00021049,2]
[404752742,1770509442037,-1000.0,0.00021128,2]
[404752743,1770509442047,-5000.0,0.00021918,2]
[404752744,1770509442056,-500.0,0.00021918,2]
[404752745,1770509442065,-500.0,0.00021918,2]
[404752746,1770509442074,-181.64368778,0.00021918,2]
[404752747,1770509442083,-500.0,0.00021918,2]
[404752748,1770509442095,-500.0,0.00021918,2]
[404752749,1770509442106,-500.0,0.00021918,2]
[404752750,1770509442116,-500.0,0.00021918,2]
[404752751,1770509442126,-201.55078246,0.00021941,2]
[404752752,1770509442137,-13082.53,0.00022,2]
[404752753,1770509442147,-384.31,0.000224,7]
[404752754,1770509442157,-3437.27644293,0.00022421,2]
[404752755,1770509442168,-500.0,0.0002246,2]
[404752756,1770509442178,-340.35210988,0.0002246,2]
[404752757,1770509442188,-269.11351765,0.0002246,2]
[404752758,1770509442197,-10466.0,0.00022773,2]
[404752759,1770509442207,-443.63912595,0.00022923,2]
[404752760,1770509442216,-160.0,0.00023,2]
[404752761,1770509442225,-1000.0,0.00023008,2]
[404752762,1770509442235,-1000.0,0.00023475,2]
[404752763,1770509442244,-501.58240503,0.00023556,2]
[404752764,1770509442253,-500.0,0.00023838,2]
[404752765,1770509442263,-2857.08317748,0.0002429,2]
[404752766,1770509442273,-235.96390318,0.00024531,2]
[404752767,1770509442282,-1000.0,0.00025823,2]
[404752768,1770509442292,-500.0,0.00026642,2]
[404752769,1770509442301,-155.0,0.00026759,2]
[404752770,1770509442311,-443.63912595,0.00027151,2]
[404752771,1770509442320,-150.0,0.00027369,2]
[404752772,1770509442329,-1000.0,0.00027397,20]
[404752773,1770509442339,-2857.08317748,0.00027531,2]
[404752774,1770509442349,-1000.0,0.0002817,2]
[404752775,1770509442358,-13082.53,0.000282,2]
[404752776,1770509442368,-182.21317059,0.00028282,2]
[404752777,1770509442378,-2462.62499165,0.00029265,2]
[404752778,1770509442387,-201.55078246,0.00029315,2]
[404752779,1770509442396,-300.0,0.00029347,2]
[404752780,1770509442406,-346.66,0.00029347,2]
[404752781,1770509442416,-235.96390318,0.00029413,2]
[404752782,1770509442425,-500.0,0.00029447,2]
[404752783,1770509442434,-3687.57,0.00029929,2]
[404752784,1770509442443,-273.13,0.00029929,2]
[404752785,1770509442453,-3541.49,0.00029929,2]
[404752786,1770509442462,-273.13,0.00029984,2]
[404752787,1770509442472,-273.13,0.00030039,2]
[404752788,1770509442482,-273.13,0.00030094,2]
[404752789,1770509442491,-273.13,0.00030149,2]
[404752790,1770509442500,-273.13,0.00030204,2]
[404752791,1770509442509,-273.13,0.0003026,2]
[404752792,1770509442519,-273.13,0.00030315,2]
[404752793,1770509442528,-273.13,0.0003037,2]
[404752794,1770509442538,-273.13,0.00030425,2]
[404752795,1770509442547,-273.13,0.0003048,2]
[404752796,1770509442557,-273.13,0.00030535,2]
[404752797,1770509442566,-273.13,0.0003059,2]
[404752798,1770509442575,-273.13,0.00030645,2]
[404752799,1770509442584,-273.13,0.00030701,2]
[404752800,1770509442593,-273.13,0.00030756,2]
[404752801,1770509442603,-2857.08317748,0.00030771,2]
[404752802,1770509442612,-273.13,0.00030811,2]
[404752803,1770509442622,-273.13,0.00030866,2]
[404752804,1770509442632,-273.13,0.00030921,2]
[404752805,1770509442641,-273.13,0.00030976,2]
[404752806,1770509442651,-2253.99,0.00030997,2]
[404752807,1770509442660,-13082.53,0.000315,2]
[404752808,1770509442669,-150.0,0.00031825,2]
[404752809,1770509442679,-150.0,0.00031825,2]
[404752810,1770509442688,-3483.0,0.00031825,2]
[404752811,1770509442698,-616.0,0.00031825,2]
[404752812,1770509442707,-1541.911,0.00031825,2]
[404752813,1770509442716,-1335.0,0.00031825,2]
[404752814,1770509442726,-1272.0,0.00031825,2]
[404752815,1770509442735,-1206.0,0.00031825,2]
[404752816,1770509442744,-917.0,0.00031825,2]
[404752817,1770509442753,-2447.0,0.00031825,2]
[404752818,1770509442763,-6584.0,0.00031825,2]
[404752819,1770509442772,-3255.0,0.00031825,2]
[404752820,1770509442782,-384.31,0.000319,7]
[404752821,1770509442791,-500.0,0.00032251,2]
[404752822,1770509442801,-507.0,0.00032616,2]
[404752823,1770509442810,-150.0,0.0003394,2]
[404752824,1770509442819,-806.94,0.00034,2]
[404752825,1770509442828,-2857.08317748,0.00034012,2]
[404752826,1770509442837,-223.07175046,0.00034132,2]
[404752827,1770509442846,-19390.65,0.0003423,2]
[404752828,1770509442855,-235.96390318,0.00034294,2]
[404752829,1770509442865,-507.0,0.00034309,4]
[404752830,1770509442874,-1000.0,0.00034715,2]
[404752831,1770509442883,-150.0,0.00034825,2]
[404752832,1770509442892,-150.0,0.00034825,2]
[404752833,1770509442902,-3483.0,0.00034825,2]
[404752834,1770509442911,-616.0,0.00034825,2]
[404752835,1770509442920,-1411.0,0.00034825,2]
[404752836,1770509442928,-1335.0,0.00034825,2]
[404752837,1770509442938,-1272.0,0.00034825,2]
[404752838,1770509442947,-1206.0,0.00034825,2]
[404752839,1770509442956,-917.0,0.00034825,2]
[404752840,1770509442966,-2447.0,0.00034825,2]
[404752841,1770509442975,-6584.0,0.00034825,2]
[404752842,1770509442984,-3255.0,0.00034825,2]
[404752843,1770509442993,-1105.94609824,0.00034904,20]
[404752844,1770509443002,-1014.57804286,0.00034904,20]
[404752845,1770509443012,-1018.17230601,0.00034904,20]
[404752846,1770509443021,-1024.22290026,0.00034904,20]
[404752847,1770509443030,-1072.19547918,0.00034904,20]
[404752848,1770509443040,-1109.83516438,0.00034904,20]
[404752849,1770509443048,-1129.43989658,0.00034904,20]
[404752850,1770509443058,-1043.12537336,0.00034904,20]
[404752851,1770509443067,-1063.8356586,0.00034904,20]
[404752852,1770509443076,-1183.43842718,0.00034904,20]
[404752853,1770509443085,-150.0,0.00034904,2]
[404752854,1770509443097,-500.0,0.00035056,2]
[404752855,1770509443106,-1392.95376928,0.0003507,2]
[404752856,1770509443115,-123021.4432068,0.0003526,2]
[404752857,1770509443124,-150.0,0.000356,2]
[404752858,1770509443135,-1500.0,0.00035616,15]
[404752859,1770509443144,-1500.0,0.00035616,15]
[404752860,1770509443154,-2601.552515,0.00035616,15]
[404752861,1770509443163,-200.0,0.00035616,2]
[404752862,1770509443173,-200.0,0.00035616,2]
[404752863,1770509443182,-318.07062284,0.00035616,7]
[404752864,1770509443191,-200.0,0.00035972,2]
[404752865,1770509443201,-200.0,0.00035972,2]
[404752866,1770509443210,-507.0,0.00036001,6]
[404752867,1770509443220,-500.0,0.00036086,30]
[404752868,1770509443230,-500.0,0.00036086,2]
[404752869,1770509443240,-13082.53,0.000361,2]
[404752870,1770509443250,-200.0,0.00036332,2]
[404752871,1770509443260,-200.0,0.00036332,2]
[404752872,1770509443269,-150.0,0.00036649,2]
[404752873,1770509443278,-201.55078246,0.00036688,9]
[404752874,1770509443287,-200.0,0.00036695,2]
[404752875,1770509443296,-200.0,0.00036695,2]
[404752876,1770509443305,-223.07175046,0.00036913,2]
[404752877,1770509443315,-200.0,0.00037062,2]
[404752878,1770509443325,-200.0,0.00037062,2]
[404752879,1770509443334,-384.31,0.000371,14]
[404752880,1770509443344,-2857.08317748,0.00037253,2]
[404752881,1770509443353,-507.0,0.00037693,8]
[404752882,1770509443362,-3483.0,0.00037825,2]
[404752883,1770509443371,-616.0,0.00037825,2]
[404752884,1770509443380,-1411.0,0.00037825,2]
[404752885,1770509443389,-1335.0,0.00037825,2]
[404752886,1770509443398,-1272.0,0.00037825,2]
[404752887,1770509443408,-1206.0,0.00037825,2]
[404752888,1770509443417,-917.0,0.00037825,2]
[404752889,1770509443426,-2447.0,0.00037825,2]
[404752890,1770509443435,-6584.0,0.00037825,2]
[404752891,1770509443444,-3255.0,0.00037825,2]
[404752892,1770509443453,-500.0,0.0003786,5]
[404752893,1770509443462,-806.94,0.000379,2]
[404752894,1770509443472,-223.07175046,0.00038304,2]
[404752895,1770509443481,-679.64,0.00038354,51]
[404752896,1770509443490,-276.59215114,0.00038356,120]
[404752897,1770509443499,-150.0,0.00038482,2]
[404752898,1770509443507,-155.0,0.00038652,2]
[404752899,1770509443516,-1370.51813464,0.00038687,2]
[404752900,1770509443525,-259.39905185,0.0003913,5]
[404752901,1770509443533,-235.96390318,0.00039176,2]
[404752902,1770509443542,-507.0,0.00039386,10]
[404752903,1770509443552,-152.0,0.0003969,3]
[404752904,1770509443561,-528.9,0.00039725,120]
[404752905,1770509443570,-852.68208559,0.00039745,2]
[404752906,1770509443579,-305.02115314,0.00039745,2]
[404752907,1770509443587,-881.38175827,0.00039745,2]
[404752908,1770509443596,-306.19819169,0.00039745,2]
[404752909,1770509443605,-457.17696299,0.00039745,2]
[404752910,1770509443614,-300.0,0.00039745,2]
[404752911,1770509443623,-370.09797997,0.00039745,2]
[404752912,1770509443631,-300.0,0.00039745,2]
[404752913,1770509443640,-300.0,0.00039745,2]
[404752914,1770509443649,-300.0,0.00039745,2]
[404752915,1770509443658,-516.79047855,0.00039745,2]
[404752916,1770509443668,-305.17533586,0.00039745,2]
[404752917,1770509443678,-300.0,0.00039745,2]
[404752918,1770509443689,-300.0,0.00039745,2]
[404752919,1770509443698,-300.0,0.00039745,2]
[404752920,1770509443706,-1078.26092173,0.00039745,2]
[404752921,1770509443716,-852.68208559,0.00039745,2]
[404752922,1770509443725,-305.02115314,0.00039745,2]
[404752923,1770509443734,-881.38175827,0.00039745,2]
[404752924,1770509443743,-306.19819169,0.00039745,2]
[404752925,1770509443755,-457.17696299,0.00039745,2]
[404752926,1770509443766,-300.0,0.00039745,2]
[404752927,1770509443776,-370.09797997,0.00039745,2]
[404752928,1770509443787,-300.0,0.00039745,2]
[404752929,1770509443796,-300.0,0.00039745,2]
[404752930,1770509443805,-300.0,0.00039745,2]
[404752931,1770509443814,-516.79047855,0.00039745,2]
[404752932,1770509443823,-305.17533586,0.00039745,2]
[404752933,1770509443832,-512.1314088,0.00039745,2]
[404752934,1770509443841,-549.97107796,0.00039745,2]
[404752935,1770509443850,-1078.26092173,0.00039745,2]
[404752936,1770509443858,-300.0,0.00039745,2]
[404752937,1770509443867,-852.68208559,0.00039745,2]
[404752938,1770509443877,-305.02115314,0.00039745,2]
[404752939,1770509443886,-300.0,0.00039745,2]
[404752940,1770509443896,-881.38175827,0.00039745,2]
[404752941,1770509443906,-300.0,0.00039745,2]
[404752942,1770509443915,-300.0,0.00039745,2]
[404752943,1770509443925,-300.0,0.00039745,2]
[404752944,1770509443934,-300.0,0.00039745,2]
[404752945,1770509443943,-306.19819169,0.00039745,2]
[404752946,1770509443951,-300.0,0.00039745,2]
[404752948,1770509443960,-300.0,0.00039745,2]
[404752949,1770509443969,-457.17696299,0.00039745,2]
[404752950,1770509443979,-300.0,0.00039745,2]
[404752951,1770509443988,-300.0,0.00039745,2]
[404752952,1770509443997,-300.0,0.00039745,2]
[404752953,1770509444006,-370.09797997,0.00039745,2]
[404752954,1770509444015,-300.0,0.00039745,2]
[404752955,1770509444025,-300.0,0.00039745,2]
[404752956,1770509444034,-300.0,0.00039745,2]
[404752957,1770509444044,-300.0,0.00039745,2]
[404752958,1770509444053,-300.0,0.00039745,2]
[404752960,1770509444224,-516.79047855,0.00039745,2]
[404752961,1770509444234,-305.17533586,0.00039745,2]
[404752962,1770509444244,-300.0,0.00039745,2]
[404752963,1770509444253,-300.0,0.00039745,2]
[404752964,1770509444264,-300.0,0.00039745,2]
[404752965,1770509444274,-300.0,0.00039745,2]
[404752966,1770509444283,-300.0,0.00039745,2]
[404752967,1770509444293,-300.0,0.00039745,2]
[404752968,1770509444302,-571.85515654,0.00039745,2]
[404752969,1770509444312,-300.0,0.00039745,2]
[404752970,1770509444322,-300.0,0.00039745,2]
[404752971,1770509444332,-300.0,0.00039745,2]
[404752972,1770509444342,-1078.26092173,0.00039745,2]
[404752973,1770509444352,-300.0,0.00039745,2]
[404752974,1770509444362,-300.0,0.00039745,2]
[404752975,1770509444371,-852.68208559,0.00039745,2]
[404752976,1770509444382,-305.02115314,0.00039745,2]
[404752977,1770509444392,-300.0,0.00039745,2]
[404752978,1770509444401,-881.38175827,0.00039745,2]
[404752979,1770509444411,-300.0,0.00039745,2]
[404752980,1770509444420,-300.0,0.00039745,2]
[404752981,1770509444430,-300.0,0.00039745,2]
[404752982,1770509444439,-300.0,0.00039745,2]
[404752983,1770509444449,-306.19819169,0.00039745,2]
[404752984,1770509444459,-300.0,0.00039745,2]
[404752985,1770509444469,-300.0,0.00039745,2]
[404752986,1770509444479,-457.17696299,0.00039745,2]
[404752987,1770509444489,-300.0,0.00039745,2]
[404752988,1770509444499,-300.0,0.00039745,2]
[404752989,1770509444509,-300.0,0.00039745,2]
[404752990,1770509444519,-370.09797997,0.00039745,2]
[404752991,1770509444528,-300.0,0.00039745,2]
[404752992,1770509444537,-300.0,0.00039745,2]
[404752993,1770509444547,-300.0,0.00039745,2]
[404752994,1770509444556,-300.0,0.00039745,2]
[404752995,1770509444565,-300.0,0.00039745,2]
[404752996,1770509444574,-516.79047855,0.00039745,2]
[404752997,1770509444584,-305.17533586,0.00039745,2]
[404752998,1770509444593,-300.0,0.00039745,2]
[404752999,1770509444602,-300.0,0.00039745,2]
[404753000,1770509444611,-13082.53,0.000399,2]
[404753001,1770509444622,-11094.83346088,0.0004,120]
[404753002,1770509444631,-250.0,0.0004,45]
[404753003,1770509444641,-2000.0,0.0004,2]
[404753004,1770509444651,-153.0,0.0004,120]
[404753005,1770509444660,-160.0,0.0004,120]
[404753006,1770509444669,-150.0,0.00040406,2]
[404753007,1770509444679,-2857.08317748,0.00040494,15]
[404753008,1770509444688,-785.0,0.000405,30]
[404753009,1770509444699,-500.0,0.00040665,30]
[404753010,1770509444709,-153.0,0.000408,120]
[404753011,1770509444719,-2000.0,0.000408,2]
[404753012,1770509444728,-3483.0,0.00040825,2]
[404753013,1770509444738,-616.0,0.00040825,2]
[404753014,1770509444750,-1411.0,0.00040825,2]
[404753015,1770509444760,-1335.0,0.00040825,2]
[404753016,1770509444771,-1272.0,0.00040825,2]
[404753017,1770509444781,-1206.0,0.00040825,2]
[404753018,1770509444791,-917.0,0.00040825,2]
[404753019,1770509444800,-2447.0,0.00040825,2]
[404753020,1770509444811,-5151.362,0.00040825,2]
[404753021,1770509444821,-300.080759,0.00040939,103]
[404753022,1770509444830,-1193.27662099,0.00040974,2]
[404753023,1770509444840,-320.65034333,0.00041,7]
[404753024,1770509444850,-507.0,0.00041078,12]
[404753025,1770509444859,-223.07175046,0.00041085,2]
[404753026,1770509444868,-200.0,0.00041279,2]
[404753027,1770509444878,-200.0,0.00041279,2]
[404753028,1770509444889,-200.0,0.00041279,2]
[404753029,1770509444899,-200.0,0.00041279,2]
[404753030,1770509444908,-200.0,0.00041279,2]
[404753031,1770509444918,-200.0,0.00041279,2]
[404753032,1770509444928,-200.0,0.00041279,2]
[404753033,1770509444937,-200.0,0.00041279,2]
[404753034,1770509444947,-200.0,0.00041279,2]
[404753035,1770509444956,-200.0,0.00041279,2]
[404753036,1770509444966,-200.0,0.00041279,2]
[404753037,1770509444975,-200.0,0.00041279,2]
[404753038,1770509444985,-200.0,0.00041279,2]
[404753039,1770509444995,-200.0,0.00041279,2]
[404753040,1770509445004,-200.0,0.00041279,2]